fUSD/lending_fUSD_20240301
["ID","MTS","AMOUNT","RATE_DAILY","PERIOD"]
[315950757,1709299850433,-500.0,0.00022191,2]
[315950758,1709299850443,-968.48,0.00022191,2]
[315950759,1709299850452,-1143.53,0.00022191,2]
[315950760,1709299850462,-580.43,0.00022191,2]
[315950761,1709299850471,-1296.67,0.00022191,2]
[315950762,1709299850481,-500.0,0.00022191,2]
[315950763,1709299850490,-500.0,0.00022191,2]
[315950764,1709299850500,-500.0,0.00022191,2]
[315950765,1709299850509,-604.83,0.00022191,2]
[315950766,1709299850519,-667.03,0.00022191,2]
[315950767,1709299850528,-500.0,0.00022191,2]
[315950768,1709299850538,-701.27,0.00022191,2]
[315950769,1709299850548,-587.96,0.00022191,2]
[315950770,1709299850561,-500.0,0.00022191,2]
[315950771,1709299850571,-500.0,0.00022191,2]
[315950772,1709299850580,-500.0,0.00022191,2]
[315950773,1709299850590,-525.74,0.00022191,2]
[315950774,1709299850601,-500.0,0.00022191,2]
[315950775,1709299850610,-988.73,0.00022191,2]
[315950776,1709299850619,-500.0,0.00022191,2]
[315950777,1709299850629,-500.0,0.00022191,2]
[315950778,1709299850639,-500.0,0.00022191,2]
[315950779,1709299850650,-500.0,0.00022191,2]
[315950780,1709299850659,-500.0,0.00022191,2]
[315950781,1709299850669,-500.0,0.00022191,2]
[315950782,1709299850678,-500.0,0.00022191,2]
[315950783,1709299850688,-500.0,0.00022191,2]
[315950784,1709299850697,-700.2,0.00022191,2]
[315950785,1709299850707,-500.0,0.00022191,2]
[315950786,1709299850716,-2541.51,0.00022191,2]
[315950787,1709299850725,-500.0,0.00022191,2]
[315950788,1709299850734,-500.0,0.00022191,2]
[315950789,1709299850743,-864.87,0.00022191,2]
[315950790,1709299850752,-500.0,0.00022191,2]
[315950791,1709299850761,-500.0,0.00022191,2]
[315950792,1709299850770,-1021.06,0.00022191,2]
[315950793,1709299850779,-931.53,0.00022191,2]
[315950794,1709299850789,-500.0,0.00022191,2]
[315950795,1709299850798,-1713.24,0.00022191,2]
[315950796,1709299850807,-500.0,0.00022191,2]
[315950797,1709299850817,-500.0,0.00022191,2]
[315950798,1709299850826,-500.0,0.00022191,2]
[315950799,1709299850835,-500.0,0.00022191,2]
[315950800,1709299850844,-500.0,0.00022191,2]
[315950801,1709299850853,-632.79,0.00022191,2]
[315950802,1709299850863,-927.61,0.00022191,2]
[315950803,1709299850872,-670.18,0.00022191,2]
[315950804,1709299850881,-1085.93,0.00022191,2]
[315950805,1709299850891,-929.72,0.00022191,2]
[315950806,1709299850900,-1542.37,0.00022191,2]
[315950807,1709299850910,-500.0,0.00022191,2]
[315950808,1709299850920,-152.177523,0.00022191,7]
[315950809,1709299850929,-536.17,0.00022191,2]
[315950810,1709299850938,-151.0,0.00022191,7]
[315950811,1709299850948,-3102.55,0.00022191,2]
[315950812,1709299850957,-662.83,0.00022191,2]
[315950813,1709299850966,-500.0,0.00022191,2]
[315950814,1709299850975,-637.85,0.00022191,2]
[315950815,1709299850984,-151.0,0.00022191,7]
[315950816,1709299850994,-500.0,0.00022191,2]
[315950817,1709299851004,-151.424298,0.00022191,7]
[315950818,1709299851013,-500.0,0.00022191,2]
[315950819,1709299851022,-500.0,0.00022191,2]
[315950820,1709299851031,-708.77,0.00022191,2]
[315950821,1709299851040,-954.57,0.00022191,2]
[315950822,1709299851050,-849.33,0.00022191,2]
[315950823,1709299851059,-500.0,0.00022191,2]
[315950824,1709299851068,-243.7956047,0.00022191,2]
[315950825,1709299851078,-4658.13,0.00022191,2]
[315950826,1709299851087,-500.0,0.00022191,2]
[315950827,1709299851097,-500.0,0.00022191,2]
[315950828,1709299851107,-6209.45,0.00022191,2]
[315950829,1709299851117,-1305.67,0.00022191,2]
[315950830,1709299851127,-726.2,0.00022191,2]
[315950831,1709299851136,-500.0,0.00022191,2]
[315950832,1709299851145,-3275.31,0.00022191,2]
[315950833,1709299851155,-1013.95,0.00022191,2]
[315950834,1709299851165,-500.0,0.00022191,2]
[315950835,1709299851175,-860.05,0.00022191,2]
[315950836,1709299851184,-561.85,0.00022191,2]
[315950837,1709299851194,-554.21,0.00022191,2]
[315950838,1709299851204,-599.28,0.00022191,2]
[315950839,1709299851213,-500.0,0.00022191,2]
[315950840,1709299851223,-500.0,0.00022191,2]
[315950841,1709299851232,-1054.32,0.00022191,2]
[315950842,1709299851242,-500.0,0.00022191,2]
[315950843,1709299851251,-500.0,0.00022191,2]
[315950844,1709299851261,-1033.14,0.00022191,2]
[315950845,1709299851271,-555.92763814,0.00022191,2]
[315950846,1709299851281,-808.02,0.00022191,2]
[315950847,1709299851291,-500.0,0.00022191,2]
[315950848,1709299851301,-500.0,0.00022191,2]
[315950849,1709299851310,-500.0,0.00022191,2]
[315950850,1709299851319,-500.0,0.00022191,2]
[315950851,1709299851329,-500.0,0.00022191,2]
[315950852,1709299851338,-500.0,0.00022191,2]
[315950853,1709299851348,-500.0,0.00022191,2]
[315950854,1709299851357,-500.0,0.00022191,2]
[315950855,1709299851367,-623.69,0.00022191,2]
[315950856,1709299851377,-4533.18,0.00022191,2]
[315950857,1709299851386,-1282.55,0.00022191,2]
[315950858,1709299851397,-2747.68,0.00022191,2]
[315950859,1709299851407,-500.0,0.00022191,2]
[315950860,1709299851417,-921.69,0.00022191,2]
[315950861,1709299851427,-500.0,0.00022191,2]
[315950862,1709299851438,-597.77,0.00022191,2]
[315950863,1709299851447,-611.05188687,0.00022191,2]
[315950864,1709299851457,-864.28,0.00022191,2]
[315950865,1709299851466,-500.0,0.00022191,2]
[315950866,1709299851475,-1404.88,0.00022191,2]
[315950867,1709299851485,-537.51,0.00022191,2]
[315950868,1709299851494,-500.0,0.00022191,2]
[315950869,1709299851503,-752.65,0.00022191,2]
[315950870,1709299851512,-500.0,0.00022191,2]
[315950871,1709299851521,-1335.46,0.00022191,2]
[315950872,1709299851530,-500.0,0.00022191,2]
[315950873,1709299851539,-500.0,0.00022191,2]
[315950874,1709299851548,-446.92,0.00022191,2]
[315950875,1709299851558,-264.19,0.00022191,2]
[315950876,1709299851570,-330.72,0.00022213,2]
[315950877,1709299851579,-219.75,0.00022264,2]
[315950878,1709299851589,-1224.33293168,0.00022281,2]
[315950879,1709299851598,-658.07,0.00022307,2]
[315950880,1709299851609,-2896.34,0.00022321,2]
[315950881,1709299851619,-178.0,0.00022348,2]
[315950882,1709299851628,-500.0,0.00022364,2]
[315950883,1709299851637,-293.48437969,0.00022364,2]
[315950884,1709299851648,-500.0,0.00022364,2]
[315950885,1709299851658,-500.0,0.00022364,2]
[315950886,1709299851667,-500.0,0.00022364,2]
[315950887,1709299851677,-542.18374268,0.00022364,2]
[315950888,1709299851686,-500.0,0.00022364,2]
[315950889,1709299851696,-491.24,0.00022364,2]
[315950890,1709299851705,-500.0,0.00022364,2]
[315950891,1709299851714,-500.0,0.00022364,2]
[315950892,1709299851724,-230.92,0.00022364,2]
[315950893,1709299851733,-500.0,0.00022364,2]
[315950894,1709299851742,-500.0,0.00022364,2]
[315950895,1709299851752,-500.0,0.00022364,2]
[315950896,1709299851761,-500.0,0.00022364,2]
[315950897,1709299851771,-453.33501037,0.00022364,2]
[315950898,1709299851780,-500.0,0.00022364,2]
[315950899,1709299851789,-500.0,0.00022364,2]
[315950900,1709299851799,-500.0,0.00022364,2]
[315950901,1709299851809,-500.0,0.00022364,2]
[315950902,1709299851818,-172.53,0.00022364,2]
[315950903,1709299851827,-500.0,0.00022364,2]
[315950904,1709299851837,-489.98,0.00022364,2]
[315950905,1709299851847,-500.0,0.00022364,2]
[315950906,1709299851857,-500.0,0.00022364,2]
[315950907,1709299851867,-500.0,0.00022364,2]
[315950908,1709299851877,-329.18,0.00022364,2]
[315950909,1709299851887,-500.0,0.00022364,2]
[315950910,1709299851897,-500.0,0.00022364,2]
[315950911,1709299851908,-500.0,0.00022364,2]
[315950912,1709299851918,-500.0,0.00022364,2]
[315950913,1709299851928,-519.08517051,0.00022364,2]
[315950914,1709299851937,-261.54831487,0.00022364,2]
[315950915,1709299851947,-500.0,0.00022364,2]
[315950916,1709299851956,-500.0,0.00022364,2]
[315950917,1709299851965,-419.09283762,0.00022364,2]
[315950918,1709299851974,-500.0,0.00022364,2]
[315950919,1709299851983,-492.5510168,0.00022364,2]
[315950920,1709299851992,-500.0,0.00022364,2]
[315950921,1709299852002,-500.0,0.00022364,2]
[315950922,1709299852011,-500.0,0.00022364,2]
[315950923,1709299852021,-500.0,0.00022364,2]
[315950924,1709299852031,-500.0,0.00022364,2]
[315950925,1709299852040,-500.0,0.00022364,2]
[315950926,1709299852049,-500.0,0.00022364,2]
[315950927,1709299852058,-500.0,0.00022364,2]
[315950928,1709299852067,-500.0,0.00022364,2]
[315950929,1709299852076,-500.0,0.00022364,2]
[315950930,1709299852085,-500.0,0.00022364,2]
[315950931,1709299852095,-500.0,0.00022364,2]
[315950932,1709299852103,-500.0,0.00022364,2]
[315950933,1709299852112,-500.0,0.00022364,2]
[315950934,1709299852121,-500.0,0.00022364,2]
[315950935,1709299852130,-500.0,0.00022364,2]
[315950936,1709299852140,-500.0,0.00022364,2]
[315950937,1709299852150,-500.0,0.00022364,2]
[315950938,1709299852158,-500.0,0.00022364,2]
[315950939,1709299852168,-500.0,0.00022364,2]
[315950940,1709299852177,-500.0,0.00022364,2]
[315950941,1709299852187,-500.0,0.00022364,2]
[315950942,1709299852196,-500.0,0.00022364,2]
[315950943,1709299852205,-500.0,0.00022364,2]
[315950944,1709299852214,-500.0,0.00022364,2]
[315950945,1709299852223,-500.0,0.00022364,2]
[315950946,1709299852232,-500.0,0.00022364,2]
[315950947,1709299852241,-500.0,0.00022364,2]
[315950948,1709299852250,-500.0,0.00022364,2]
[315950949,1709299852259,-444.90262297,0.00022364,2]
[315950950,1709299852268,-500.0,0.00022364,2]
[315950951,1709299852276,-500.0,0.00022364,2]
[315950952,1709299852286,-513.88,0.00022364,2]
[315950953,1709299852295,-500.0,0.00022364,2]
[315950954,1709299852305,-500.0,0.00022364,2]
[315950955,1709299852314,-500.0,0.00022364,2]
[315950956,1709299852323,-500.0,0.00022364,2]
[315950957,1709299852333,-500.0,0.00022364,2]
[315950958,1709299852342,-500.0,0.00022364,2]
[315950959,1709299852351,-248.43671433,0.00022364,2]
[315950960,1709299852360,-500.0,0.00022364,2]
[315950961,1709299852369,-500.0,0.00022364,2]
[315950962,1709299852379,-500.0,0.00022364,2]
[315950963,1709299852388,-500.0,0.00022364,2]
[315950964,1709299852398,-220.07016893,0.00022364,2]
[315950965,1709299852408,-500.0,0.00022364,2]
[315950966,1709299852417,-500.0,0.00022364,2]
[315950967,1709299852426,-500.0,0.00022364,2]
[315950968,1709299852436,-500.0,0.00022364,2]
[315950969,1709299852445,-500.0,0.00022364,2]
[315950970,1709299852454,-500.0,0.00022364,2]
[315950971,1709299852464,-500.0,0.00022364,2]
[315950972,1709299852473,-500.0,0.00022364,2]
[315950973,1709299852483,-500.0,0.00022364,2]
[315950974,1709299852493,-516.3651521,0.00022364,2]
[315950975,1709299852502,-500.0,0.00022364,2]
[315950976,1709299852513,-500.0,0.00022364,2]
[315950977,1709299852523,-500.0,0.00022364,2]
[315950978,1709299852533,-500.0,0.00022364,2]
[315950979,1709299852542,-500.0,0.00022364,2]
[315950980,1709299852552,-500.0,0.00022364,2]
[315950981,1709299852561,-500.0,0.00022364,2]
[315950982,1709299852572,-500.0,0.00022364,2]
[315950983,1709299852582,-500.0,0.00022364,2]
[315950984,1709299852591,-500.0,0.00022364,2]
[315950985,1709299852600,-1516.29,0.00022364,2]
[315950986,1709299852611,-500.0,0.00022364,2]
[315950987,1709299852620,-192.29,0.00022364,2]
[315950988,1709299852629,-153.72251294,0.00022365,2]
[315950989,1709299852638,-170.7862243,0.00022365,2]
[315950990,1709299852648,-4658.95036575,0.00022365,2]
[315950991,1709299852658,-219.75,0.00022379,2]
[315950992,1709299852667,-341.93,0.00022386,2]
[315950993,1709299852677,-1000.0,0.00022399,2]
[315950994,1709299852686,-4658.95036564,0.00022415,2]
[315950995,1709299852696,-1224.33293168,0.00022436,2]
[315950996,1709299852705,-1112.69236091,0.00022449,3]
[315950997,1709299852715,-322.48240909,0.00022449,3]
[315950998,1709299852724,-285.87612612,0.00022449,3]
[315950999,1709299852733,-168.67492836,0.00022449,3]
[315951000,1709299852743,-1000.0,0.00022449,3]
[315951001,1709299852752,-170.85100713,0.00022449,3]
[315951002,1709299852761,-4658.95036564,0.00022465,2]
[315951003,1709299852770,-500.0,0.00022465,2]
[315951004,1709299852780,-500.0,0.00022465,2]
[315951005,1709299852789,-500.0,0.00022465,2]
[315951006,1709299852798,-500.0,0.00022465,2]
[315951007,1709299852807,-500.0,0.00022465,2]
[315951008,1709299852816,-765.48,0.00022465,2]
[315951009,1709299852825,-500.0,0.00022465,2]
[315951010,1709299852835,-500.0,0.00022465,2]
[315951011,1709299852844,-500.0,0.00022465,2]
[315951012,1709299852853,-500.0,0.00022465,2]
[315951013,1709299852862,-500.0,0.00022465,2]
[315951014,1709299852871,-589.06664481,0.00022465,2]
[315951015,1709299852881,-500.0,0.00022465,2]
[315951016,1709299852890,-500.0,0.00022465,2]
[315951017,1709299852899,-545.31,0.00022465,2]
[315951018,1709299852909,-559.51,0.00022465,2]
[315951019,1709299852918,-500.0,0.00022465,2]
[315951020,1709299852928,-500.0,0.00022465,2]
[315951021,1709299852937,-500.0,0.00022465,2]
[315951022,1709299852946,-644.03,0.00022465,2]
[315951023,1709299852955,-500.0,0.00022465,2]
[315951024,1709299852964,-500.0,0.00022465,2]
[315951025,1709299852973,-500.0,0.00022465,2]
[315951026,1709299852993,-500.0,0.00022465,2]
[315951027,1709299853003,-557.41,0.00022465,2]
[315951028,1709299853012,-500.0,0.00022465,2]
[315951029,1709299853022,-500.0,0.00022465,2]
[315951030,1709299853032,-565.13,0.00022465,2]
[315951031,1709299853041,-500.0,0.00022465,2]
[315951032,1709299853050,-787.78,0.00022465,2]
[315951033,1709299853060,-500.0,0.00022465,2]
[315951034,1709299853070,-592.99267031,0.00022465,2]
[315951035,1709299853079,-500.0,0.00022465,2]
[315951036,1709299853088,-500.0,0.00022465,2]
[315951037,1709299853098,-500.0,0.00022465,2]
[315951038,1709299853107,-151.0,0.00022465,7]
[315951039,1709299853117,-548.88,0.00022465,2]
[315951040,1709299853126,-500.0,0.00022465,2]
[315951041,1709299853135,-573.94,0.00022465,2]
[315951042,1709299853145,-500.0,0.00022465,2]
[315951043,1709299853156,-500.0,0.00022465,2]
[315951044,1709299853165,-500.0,0.00022465,2]
[315951045,1709299853176,-500.0,0.00022465,2]
[315951046,1709299853186,-584.87,0.00022465,2]
[315951047,1709299853195,-500.0,0.00022465,2]
[315951048,1709299853205,-500.0,0.00022465,2]
[315951049,1709299853215,-500.0,0.00022465,2]
[315951050,1709299853224,-500.0,0.00022465,2]
[315951051,1709299853234,-151.0,0.00022465,7]
[315951052,1709299853244,-500.0,0.00022465,2]
[315951053,1709299853254,-500.0,0.00022465,2]
[315951054,1709299853264,-500.0,0.00022465,2]
[315951055,1709299853273,-384.68836362,0.00022465,2]
[315951056,1709299853283,-500.0,0.00022465,2]
[315951057,1709299853292,-527.95,0.00022465,2]
[315951058,1709299853302,-500.0,0.00022465,2]
[315951059,1709299853312,-151.0,0.00022465,7]
[315951060,1709299853321,-500.0,0.00022465,2]
[315951061,1709299853331,-500.0,0.00022465,2]
[315951062,1709299853341,-500.0,0.00022465,2]
[315951063,1709299853350,-500.0,0.00022465,2]
[315951064,1709299853359,-580.16,0.00022465,2]
[315951065,1709299853369,-500.0,0.00022465,2]
[315951066,1709299853378,-500.0,0.00022465,2]
[315951067,1709299853387,-500.35,0.00022465,2]
[315951068,1709299853396,-500.0,0.00022465,2]
[315951069,1709299853406,-500.0,0.00022465,2]
[315951070,1709299853415,-500.0,0.00022465,2]
[315951071,1709299853425,-500.0,0.00022465,2]
[315951072,1709299853439,-481.13784762,0.00022465,2]
[315951073,1709299853448,-500.0,0.00022465,2]
[315951074,1709299853457,-645.66,0.00022465,2]
[315951075,1709299853467,-500.0,0.00022465,2]
[315951076,1709299853477,-500.0,0.00022465,2]
[315951077,1709299853487,-150.0,0.00022465,2]
[315951078,1709299853497,-554.15,0.00022465,2]
[315951079,1709299853506,-500.0,0.00022465,2]
[315951080,1709299853515,-500.0,0.00022465,2]
[315951081,1709299853525,-617.19,0.00022465,2]
[315951082,1709299853533,-500.0,0.00022465,2]
[315951083,1709299853543,-500.0,0.00022465,2]
[315951084,1709299853554,-500.0,0.00022465,2]
[315951085,1709299853565,-151.0,0.00022465,2]
[315951086,1709299853575,-500.0,0.00022465,2]
[315951087,1709299853584,-500.0,0.00022465,2]
[315951088,1709299853594,-500.0,0.00022465,2]
[315951089,1709299853604,-500.0,0.00022465,2]
[315951090,1709299853614,-657.9,0.00022465,2]
[315951091,1709299853623,-151.0,0.00022465,3]
[315951092,1709299853633,-500.0,0.00022465,2]
[315951093,1709299853642,-500.0,0.00022465,2]
[315951094,1709299853654,-1132.65,0.00022465,2]
[315951095,1709299853663,-500.0,0.00022465,2]
[315951096,1709299853673,-572.04,0.00022465,2]
[315951097,1709299853683,-637.98,0.00022465,2]
[315951098,1709299853693,-500.0,0.00022465,2]
[315951099,1709299853706,-1551.68,0.00022465,2]
[315951100,1709299853717,-529.34,0.00022465,2]
[315951101,1709299853726,-500.0,0.00022465,2]
[315951102,1709299853736,-1080.97,0.00022465,2]
[315951103,1709299853746,-500.0,0.00022465,2]
[315951104,1709299853756,-526.33,0.00022465,2]
[315951105,1709299853767,-548.11,0.00022465,2]
[315951106,1709299853777,-685.54,0.00022465,2]
[315951107,1709299853788,-500.0,0.00022465,2]
[315951108,1709299853798,-500.0,0.00022465,2]
[315951109,1709299853809,-500.16,0.00022465,2]
[315951110,1709299853819,-471.61450272,0.00022465,2]
[315951111,1709299853829,-1100.16,0.00022465,2]
[315951112,1709299853840,-500.0,0.00022465,2]
[315951113,1709299853851,-500.0,0.00022465,2]
[315951114,1709299853861,-500.0,0.00022465,2]
[315951115,1709299853871,-500.0,0.00022465,2]
[315951116,1709299853881,-718.04,0.00022465,2]
[315951117,1709299853892,-500.0,0.00022465,2]
[315951118,1709299853902,-500.0,0.00022465,2]
[315951119,1709299853913,-151.0,0.00022465,7]
[315951120,1709299853924,-500.0,0.00022465,2]
[315951121,1709299853934,-513.78549838,0.00022465,2]
[315951122,1709299853944,-553.49,0.00022465,2]
[315951123,1709299853955,-643.45437804,0.00022465,2]
[315951124,1709299853966,-500.0,0.00022465,2]
[315951125,1709299853980,-500.0,0.00022465,2]
[315951126,1709299853990,-513.76712332,0.00022465,2]
[315951127,1709299854001,-500.0,0.00022465,2]
[315951128,1709299854012,-686.71,0.00022465,2]
[315951129,1709299854023,-500.0,0.00022465,2]
[315951130,1709299854033,-500.0,0.00022465,2]
[315951131,1709299854043,-500.0,0.00022465,2]
[315951132,1709299854053,-1344.42,0.00022465,2]
[315951133,1709299854064,-500.0,0.00022465,2]
[315951134,1709299854074,-500.0,0.00022465,2]
[315951135,1709299854085,-589.26,0.00022465,2]
[315951136,1709299854094,-5969.63,0.00022465,2]
[315951137,1709299854104,-500.0,0.00022465,2]
[315951138,1709299854115,-500.0,0.00022465,2]
[315951139,1709299854125,-151.0,0.00022465,7]
[315951140,1709299854135,-1923.21,0.00022465,2]
[315951141,1709299854146,-665.76,0.00022465,2]
[315951142,1709299854158,-500.0,0.00022465,2]
[315951143,1709299854168,-844.68,0.00022465,2]
[315951144,1709299854178,-500.0,0.00022465,2]
[315951145,1709299854189,-4595.29,0.00022465,2]
[315951146,1709299854200,-500.0,0.00022465,2]
[315951147,1709299854210,-885.38,0.00022465,2]
[315951148,1709299854221,-500.0,0.00022465,2]
[315951149,1709299854231,-151.0,0.00022465,7]
[315951150,1709299854241,-629.26,0.00022465,2]
[315951151,1709299854251,-151.0,0.00022465,7]
[315951152,1709299854262,-644.39,0.00022465,2]
[315951153,1709299854273,-506.25,0.00022465,2]
[315951154,1709299854283,-2239.8,0.00022465,2]
[315951155,1709299854293,-500.0,0.00022465,2]
[315951156,1709299854304,-500.0,0.00022465,2]
[315951157,1709299854314,-500.0,0.00022465,2]
[315951158,1709299854326,-1641.68,0.00022465,2]
[315951159,1709299854336,-1520.47,0.00022465,2]
[315951160,1709299854346,-500.0,0.00022465,2]
[315951161,1709299854357,-154.557821,0.00022465,7]
[315951162,1709299854367,-522.84319262,0.00022465,2]
[315951163,1709299854377,-500.0,0.00022465,2]
[315951164,1709299854388,-905.28,0.00022465,2]
[315951165,1709299854400,-500.0,0.00022465,2]
[315951166,1709299854410,-500.0,0.00022465,2]
[315951167,1709299854421,-500.0,0.00022465,2]
[315951168,1709299854431,-500.0,0.00022465,2]
[315951169,1709299854442,-928.71,0.00022465,2]
[315951170,1709299854452,-151.0,0.00022465,7]
[315951171,1709299854463,-612.06,0.00022465,2]
[315951172,1709299854473,-500.0,0.00022465,2]
[315951173,1709299854483,-538.91,0.00022465,2]
[315951174,1709299854494,-659.71,0.00022465,2]
[315951175,1709299854504,-500.0,0.00022465,2]
[315951176,1709299854514,-500.0,0.00022465,2]
[315951177,1709299854524,-639.93,0.00022465,2]
[315951178,1709299854535,-515.23,0.00022465,2]
[315951179,1709299854544,-500.0,0.00022465,2]
[315951180,1709299854555,-328.56,0.00022465,2]
[315951181,1709299854569,-570.89,0.00022465,2]
[315951182,1709299854581,-151.0,0.00022465,7]
[315951183,1709299854592,-1537.59,0.00022465,2]
[315951184,1709299854603,-500.0,0.00022465,2]
[315951185,1709299854615,-500.0,0.00022465,2]
[315951186,1709299854626,-1506.72,0.00022465,2]
[315951187,1709299854636,-1614.43,0.00022465,2]
[315951188,1709299854647,-500.0,0.00022465,2]
[315951189,1709299854660,-500.0,0.00022465,2]
[315951190,1709299854671,-994.38,0.00022465,2]
[315951191,1709299854682,-151.310813,0.00022465,7]
[315951192,1709299854693,-1049.11,0.00022465,2]
[315951193,1709299854705,-13993.68,0.00022465,2]
[315951194,1709299854718,-500.0,0.00022465,2]
[315951195,1709299854730,-500.0,0.00022465,2]
[315951196,1709299854740,-500.0,0.00022465,2]
[315951197,1709299854750,-555.23,0.00022465,2]
[315951198,1709299854761,-500.0,0.00022465,2]
[315951199,1709299854771,-664.03,0.00022465,2]
[315951200,1709299854781,-573.38,0.00022465,2]
[315951201,1709299854791,-1058.39,0.00022465,2]
[315951202,1709299854801,-1154.32,0.00022465,2]
[315951203,1709299854811,-152.316143,0.00022465,7]
[315951204,1709299854821,-509.3,0.00022465,2]
[315951205,1709299854831,-1018.32,0.00022465,2]
[315951206,1709299854841,-2031.42,0.00022465,2]
[315951207,1709299854851,-1112.07,0.00022465,2]
[315951208,1709299854861,-500.0,0.00022465,2]
[315951209,1709299854870,-500.0,0.00022465,2]
[315951210,1709299854880,-500.0,0.00022465,2]
[315951211,1709299854890,-759.95,0.00022465,2]
[315951212,1709299854900,-500.0,0.00022465,2]
[315951213,1709299854910,-500.0,0.00022465,2]
[315951214,1709299854919,-157.17298355,0.00022465,2]
[315951215,1709299854929,-516.67,0.00022465,2]
[315951216,1709299854939,-585.41,0.00022465,2]
[315951217,1709299854949,-587.62,0.00022465,2]
[315951218,1709299854959,-755.79,0.00022465,2]
[315951219,1709299854968,-500.0,0.00022465,2]
[315951220,1709299854978,-968.48,0.00022465,2]
[315951221,1709299854987,-1143.53,0.00022465,2]
[315951222,1709299854997,-580.43,0.00022465,2]
[315951223,1709299855008,-1296.67,0.00022465,2]
[315951224,1709299855018,-500.0,0.00022465,2]
[315951225,1709299855029,-500.0,0.00022465,2]
[315951226,1709299855039,-500.0,0.00022465,2]
[315951227,1709299855050,-604.83,0.00022465,2]
[315951228,1709299855060,-667.03,0.00022465,2]
[315951229,1709299855070,-500.0,0.00022465,2]
[315951230,1709299855080,-701.27,0.00022465,2]
[315951231,1709299855090,-587.96,0.00022465,2]
[315951232,1709299855100,-500.0,0.00022465,2]
[315951233,1709299855111,-500.0,0.00022465,2]
[315951234,1709299855122,-500.0,0.00022465,2]
[315951235,1709299855132,-525.74,0.00022465,2]
[315951236,1709299855142,-500.0,0.00022465,2]
[315951237,1709299855155,-988.73,0.00022465,2]
[315951238,1709299855164,-500.0,0.00022465,2]
[315951239,1709299855175,-500.0,0.00022465,2]
[315951240,1709299855185,-500.0,0.00022465,2]
[315951241,1709299855195,-500.0,0.00022465,2]
[315951242,1709299855206,-500.0,0.00022465,2]
[315951243,1709299855216,-500.0,0.00022465,2]
[315951244,1709299855226,-500.0,0.00022465,2]
[315951245,1709299855236,-500.0,0.00022465,2]
[315951246,1709299855246,-700.2,0.00022465,2]
[315951247,1709299855256,-500.0,0.00022465,2]
[315951248,1709299855266,-2541.51,0.00022465,2]
[315951249,1709299855276,-500.0,0.00022465,2]
[315951250,1709299855286,-500.0,0.00022465,2]
[315951251,1709299855298,-864.87,0.00022465,2]
[315951252,1709299855308,-500.0,0.00022465,2]
[315951253,1709299855318,-500.0,0.00022465,2]
[315951254,1709299855327,-1021.06,0.00022465,2]
[315951255,1709299855338,-931.53,0.00022465,2]
[315951256,1709299855348,-500.0,0.00022465,2]